bitfinex-derivatives/quotes_ETHF0:USTF0_20240904
["timestamp","ask_amount","ask_price","bid_price","bid_amount"]
[1725488518984,0.40542,2466.7,2466.6,0.00608359]
[1725488519182,0.40541,2466.8,2466.6,0.00608359]
[1725488519980,0.40541,2466.8,2466.6,0.41151359]
[1725488520175,0.40541,2466.8,2466.6,0.00608359]
[1725488520794,0.40542,2466.7,2466.6,0.00608359]
[1725488521180,0.40541,2466.8,2466.6,0.00608359]
[1725488521585,4.75359,2466.9,2466.6,0.41151359]
[1725488521783,0.4054,2466.8,2466.6,0.00608359]
[1725488521987,0.4054,2466.8,2466.6,0.41151359]
[1725488522588,0.4054,2466.8,2466.6,0.00608359]
[1725488522780,3.2078,2466.7,2466.6,0.00608359]
[1725488524986,3.2078,2466.7,2466.6,0.41151359]
[1725488525180,1.54579,2466.9,2466.8,0.4054]
[1725488525181,0.7681,2466.9,2466.8,0.4054]
[1725488525381,3.2078,2467.3,2467.2,0.40533]
[1725488525692,3.2078,2467.3,2467.1,2.81]
[1725488525889,3.2078,2467.3,2467.1,3.21533]
[1725488526892,3.2078,2467.3,2467.0,0.40536]
[1725488527086,3.2078,2467.3,2466.8,2.81]
[1725488527288,3.2078,2467.3,2467.1,0.40535]
[1725488527488,3.2078,2467.3,2467.0,0.40536]
[1725488528509,3.2078,2467.3,2467.1,0.40535]
[1725488528905,3.2078,2467.2,2467.1,0.40535]
[1725488529110,3.2078,2467.2,2466.8,2.81]
[1725488529500,0.40535,2467.1,2466.6,2.81608359]
[1725488529802,0.4054,2466.8,2466.6,0.00608359]
[1725488530009,3.5756,2466.7,2466.6,0.00608359]
[1725488530204,0.3678,2466.7,2466.6,0.00608359]
[1725488532202,0.3678,2466.7,2466.6,0.41151359]
[1725488532611,0.3678,2466.7,2466.6,3.22151359]
[1725488532800,0.7528,2467.0,2466.7,0.40541]
[1725488533005,3.2078,2466.9,2466.7,0.40541]
[1725488533505,0.3623,2467.0,2466.7,0.40541]
[1725488533812,3.2078,2466.9,2466.7,0.40541]
[1725488534316,3.2078,2466.9,2466.6,3.22150359]
[1725488535203,3.2078,2466.9,2466.6,2.81608359]
[1725488535404,3.61318,2466.9,2466.6,2.81608359]
[1725488535905,3.61318,2466.9,2466.6,3.22151359]
[1725488536311,3.61318,2466.9,2466.6,2.81608359]
[1725488536506,3.2078,2466.9,2466.8,0.4054]
[1725488536702,0.3623,2467.0,2466.7,0.40541]
[1725488536908,0.76767,2467.0,2466.6,3.22150359]
[1725488537108,3.2078,2466.8,2466.6,3.22150359]
[1725488537810,3.2078,2466.8,2466.6,0.00608359]
[1725488538019,0.40542,2466.7,2466.6,0.00608359]
[1725488538221,3.2078,2466.8,2466.6,0.00608359]
[1725488538715,0.40542,2466.7,2466.6,0.00608359]
[1725488540816,3.61321,2466.8,2466.6,0.00608359]
[1725488541113,0.40542,2466.7,2466.6,0.00608359]
[1725488541317,3.61321,2466.8,2466.6,0.00608359]
[1725488542115,0.40542,2466.7,2466.6,0.00608359]
[1725488542510,3.61321,2466.8,2466.6,0.00608359]
[1725488543616,3.2078,2466.8,2466.6,0.41150359]
[1725488543819,3.2078,2466.7,2466.6,0.41150359]
[1725488544215,3.5701,2467.0,2466.9,0.40538]
[1725488544414,7.72412,2467.3,2467.0,0.40535]
[1725488544711,3.2078,2467.1,2467.0,0.40535]
[1725488544912,3.2078,2467.1,2466.9,2.81]
[1725488544913,3.2078,2467.1,2466.9,3.21537]
[1725488545213,3.2078,2467.1,2467.0,0.40537]
[1725488545409,3.2078,2467.1,2466.9,3.21537]
[1725488553419,3.61313,2467.3,2466.9,3.21537]
[1725488553610,3.61313,2467.3,2467.0,0.40536]
[1725488554520,3.61313,2467.3,2466.9,2.81]
[1725488554521,0.40533,2467.2,2466.9,3.21537]
[1725488555017,0.40535,2467.1,2466.8,0.40539]
[1725488555214,3.2078,2467.3,2466.6,0.41168359]
[1725488555215,0.40542,2466.7,2466.6,0.00608359]
[1725488555521,0.40539,2466.9,2466.6,0.00608359]
[1725488555719,0.3565,2466.8,2466.6,0.41150359]
[1725488556218,0.3565,2466.8,2466.7,0.40542]
[1725488556422,0.3565,2466.8,2466.6,0.41150359]
[1725488556618,0.7619,2466.8,2466.6,0.41150359]
[1725488556812,0.3565,2466.8,2466.6,0.00608359]
[1725488557329,0.7619,2466.8,2466.6,0.00608359]
[1725488558024,0.40542,2466.7,2466.6,0.00608359]
[1725488558328,3.61322,2466.7,2466.6,0.00608359]
[1725488559116,0.40542,2466.7,2466.6,0.00608359]
[1725488559514,0.76191,2466.8,2466.6,0.00608359]
[1725488560316,0.3565,2466.8,2466.6,0.41150359]
[1725488560721,0.3565,2466.8,2466.7,0.40542]
[1725488561013,0.3565,2466.8,2466.6,0.41150359]
[1725488562017,0.3565,2466.8,2466.6,0.00608359]
[1725488562215,0.7619,2466.8,2466.6,0.00608359]
[1725488562420,0.3565,2466.8,2466.6,0.00608359]
[1725488563419,0.7619,2466.8,2466.6,0.00608359]
[1725488563613,0.3565,2466.8,2466.6,0.00608359]
[1725488563813,0.7619,2466.8,2466.6,0.00608359]
[1725488564416,0.40542,2466.7,2466.6,0.00608359]
[1725488564815,0.76191,2466.8,2466.6,0.00608359]
[1725488565016,0.40542,2466.7,2466.6,0.00608359]
[1725488565218,0.40539,2466.9,2466.6,0.41151359]
[1725488565415,0.78769,2466.9,2466.6,0.41151359]
[1725488565924,3.99549,2466.9,2466.6,0.41151359]
[1725488566927,0.4054,2466.8,2466.6,0.41151359]
[1725488567117,0.4054,2466.8,2466.6,0.00608359]
[1725488567523,0.40542,2466.7,2466.6,0.00608359]
[1725488567928,4.45982,2466.7,2466.6,0.00608359]
[1725488568118,0.40542,2466.7,2466.6,0.00608359]
[1725488569331,0.40541,2466.8,2466.6,0.41151359]
[1725488570029,3.5901,2466.9,2466.6,0.00608359]
[1725488570428,3.99549,2466.9,2466.7,0.40541]
[1725488570824,4.0536,2466.8,2466.7,0.40541]
[1725488571032,0.4054,2466.8,2466.6,0.41150359]
[1725488571729,0.40542,2466.7,2466.6,0.00608359]
[1725488572325,0.40541,2466.8,2466.6,0.41151359]
[1725488572523,0.40542,2466.7,2466.6,0.00608359]
[1725488572730,0.40541,2466.8,2466.6,0.41151359]
[1725488574249,0.40542,2466.7,2466.6,0.00608359]
[1725488575936,1.41897,2466.7,2466.6,0.00608359]
[1725488576445,37.91897,2466.7,2466.6,0.00608359]
[1725488577048,37.91897,2466.7,2466.4,1.17]
[1725488577049,0.40545,2466.5,2466.4,1.17]
[1725488577233,3.61325,2466.5,2466.4,1.17]
[1725488577541,3.99535,2466.5,2466.4,1.17]
[1725488578035,0.40547,2466.4,2466.2,0.41157359]
[1725488579131,3.99536,2466.5,2466.2,0.00608359]
[1725488579336,0.40547,2466.4,2466.2,0.00608359]
[1725488579732,0.78756,2466.5,2466.2,0.41156359]
[1725488579928,0.3849,2466.4,2466.2,0.41156359]
[1725488580838,0.79036,2466.4,2466.2,0.41156359]
[1725488581939,0.40548,2466.3,2466.2,0.00608359]
[1725488582848,0.3849,2466.4,2466.2,0.00608359]
[1725488583039,0.79038,2466.4,2466.2,0.41158359]
[1725488583544,0.40552,2466.1,2465.7,2.8]
[1725488583743,1.14494,2466.0,2465.8,0.40556]
[1725488584344,1.14494,2466.0,2465.7,3.20557]
[1725488584531,1.14494,2466.0,2465.6,3.2078]
[1725488584532,0.40556,2465.8,2465.6,0.40559]
[1725488584738,0.40556,2465.8,2465.6,0.41167359]
[1725488586743,0.40556,2465.8,2465.6,0.00608359]
[1725488586935,0.3817,2465.7,2465.6,0.41168359]
[1725488587739,3.2078,2466.3,2465.6,11.08386359]
[1725488588049,3.5895,2466.3,2466.1,0.40551]
[1725488588242,3.99498,2466.3,2466.1,0.40551]
[1725488588545,3.5895,2466.3,2466.1,0.40551]
[1725488589640,0.3817,2466.3,2466.1,0.40551]
[1725488589845,3.5895,2466.3,2466.1,0.40551]
[1725488592143,0.3817,2466.3,2466.1,0.40551]
[1725488592348,3.5895,2466.3,2466.1,0.40551]
[1725488592542,3.5895,2466.3,2466.2,0.4055]
[1725488592755,0.3817,2466.3,2466.2,0.4055]
[1725488596646,0.3817,2466.3,2465.7,3.2245]
[1725488596846,4.60323,2466.3,2465.8,0.40556]
[1725488597046,0.40552,2466.1,2465.8,0.40556]
[1725488597251,0.40555,2465.9,2465.6,0.41167359]
[1725488597440,1.1442,2465.8,2465.6,0.00608359]
[1725488597641,1.54977,2465.8,2465.6,0.00608359]
[1725488598043,1.1442,2465.8,2465.6,0.00608359]
[1725488599852,0.40558,2465.7,2465.6,0.00608359]
[1725488600845,3.61338,2465.7,2465.6,0.00608359]
[1725488601750,13.66938,2465.7,2465.0,3.4108]
[1725488601944,3.2078,2465.1,2464.7,0.60873]
[1725488602145,3.2078,2465.1,2464.5,6.0078]
[1725488602146,1.1346,2465.0,2464.6,0.40576]
[1725488602652,3.2078,2464.8,2464.6,0.40576]
[1725488603157,3.2078,2464.8,2464.6,0.40575]
[1725488603352,3.2078,2464.8,2464.7,0.40574]
[1725488603557,3.2078,2464.8,2464.5,2.8]
[1725488603558,3.2078,2464.8,2464.6,0.40576]
[1725488603762,3.2078,2464.8,2464.5,3.20577]
[1725488603964,3.2078,2464.8,2464.6,0.40576]
[1725488604156,3.2078,2464.8,2464.5,2.8]
[1725488604347,3.2078,2464.8,2464.5,3.20577]
[1725488605052,0.3613,2464.7,2464.5,2.8]
[1725488605248,0.3613,2464.7,2464.2,2.8]
[1725488605451,3.2078,2464.5,2464.1,0.40583]
[1725488605651,0.7504,2464.4,2464.1,0.40583]
[1725488605852,0.7504,2464.4,2464.2,0.40583]
[1725488606051,0.3613,2464.3,2464.2,0.40583]
[1725488608547,0.3912,2464.4,2464.3,0.40581]
[1725488613347,0.3912,2464.4,2463.9,3.2078]
[1725488613552,0.3543,2464.3,2464.1,0.40583]
[1725488613753,0.3918,2464.2,2464.1,0.40583]
[1725488614453,0.3918,2464.2,2463.4,0.2256]
[1725488614454,7.658,2464.2,2463.4,3.4108]
[1725488614658,3.5996,2464.2,2463.8,0.40589]
[1725488614862,0.40584,2464.1,2463.8,0.40589]
[1725488615648,4.00544,2464.2,2463.8,0.40589]
[1725488616062,0.40585,2464.1,2463.8,0.40589]
[1725488616258,0.40585,2464.1,2463.4,3.2078]
[1725488616259,3.2078,2463.9,2463.4,3.2078]
[1725488616458,0.3867,2463.8,2463.7,0.40591]
[1725488616764,0.7442,2463.8,2463.6,0.40591]
[1725488616964,0.3621,2463.7,2463.6,0.40591]
[1725488617260,0.3621,2463.7,2463.4,3.61375]
[1725488617462,0.76801,2463.7,2463.4,3.61375]
[1725488617861,0.3621,2463.7,2463.5,0.40594]
[1725488618760,0.3621,2463.7,2463.6,0.40593]
[1725488619466,0.3621,2463.7,2463.4,3.2078]
[1725488619658,0.3621,2463.7,2463.6,0.40593]
[1725488621364,0.7442,2463.8,2463.7,0.40591]
[1725488621570,0.3867,2463.8,2463.7,0.40591]
[1725488621867,0.3867,2463.8,2463.7,4.46511]
[1725488623164,0.3867,2463.8,2463.7,0.40591]
[1725488623861,4.111,2464.2,2464.1,0.40584]
[1725488624058,0.3759,2464.2,2464.1,0.40584]
[1725488624258,0.3759,2464.2,2464.0,0.40585]
[1725488624259,3.5837,2464.2,2464.0,0.40585]
[1725488624458,3.5837,2464.2,2464.1,0.40584]
[1725488625367,0.3759,2464.2,2464.1,0.40584]
[1725488625559,3.5837,2464.2,2464.0,0.40585]
[1725488625868,0.3759,2464.2,2463.9,0.40586]
[1725488626061,0.78173,2464.2,2463.9,0.40586]
[1725488626565,0.78173,2464.2,2463.8,0.40588]
[1725488626971,0.78173,2464.2,2463.9,0.40587]
[1725488627162,3.2078,2464.0,2463.9,0.40587]
[1725488627469,0.78173,2464.2,2463.9,0.40587]
[1725488629064,0.78173,2464.2,2463.9,0.40588]
[1725488629867,3.2078,2464.0,2463.9,0.40588]
[1725488630267,3.2078,2464.0,2463.6,2.8]
[1725488630468,3.2078,2464.0,2463.8,0.40589]
[1725488630668,0.3679,2463.9,2463.8,0.40589]
[1725488633173,0.3679,2463.9,2463.7,0.4059]
[1725488633374,0.3796,2463.8,2463.7,0.4059]
[1725488633870,0.3796,2463.8,2463.7,4.4651]
[1725488634565,0.753,2463.8,2463.7,4.4651]
[1725488635166,0.753,2463.8,2463.7,0.4059]
[1725488636277,0.753,2463.8,2463.7,7.6729]
[1725488636278,0.3796,2463.8,2463.7,7.6729]
[1725488636477,3.2078,2464.1,2464.0,0.40586]
[1725488636774,1.142,2464.2,2464.0,0.40586]
[1725488637371,1.142,2464.2,2464.1,0.40584]
[1725488641278,1.142,2464.2,2463.8,0.40589]
[1725488641468,0.40584,2464.1,2463.8,0.40589]
[1725488642182,1.142,2464.2,2463.9,0.40588]
[1725488642375,1.142,2464.2,2463.8,2.8]
[1725488642574,1.142,2464.2,2464.0,0.40586]
[1725488642773,1.142,2464.2,2463.6,2.8]
[1725488642976,3.2078,2464.0,2463.4,3.2078]
[1725488643170,2.15659,2464.2,2463.4,6.0078]
[1725488643171,1.142,2464.2,2463.4,6.0078]
[1725488643378,0.40588,2463.9,2463.5,0.40594]
[1725488643775,0.3901,2463.8,2463.5,0.40594]
[1725488643980,0.7305,2463.7,2463.5,0.40594]
[1725488644175,0.7305,2463.7,2463.4,3.61375]
[1725488645982,0.7305,2463.7,2463.4,0.40595]
[1725488646189,1.13642,2463.7,2463.3,0.40596]
[1725488646389,1.13642,2463.7,2463.4,0.40595]
[1725488646887,0.7305,2463.7,2463.4,0.40595]
[1725488647487,36.5,2464.1,2463.6,6.0078]
[1725488647691,0.00608359,2464.1,2464.0,0.40585]
[1725488654984,0.00608359,2464.1,2464.0,1.42051]
[1725488655191,0.00608359,2464.1,2464.0,0.40585]
[1725488659987,0.00608359,2464.1,2464.0,1.42051]
[1725488660187,0.00608359,2464.1,2464.0,0.40585]
[1725488660393,0.00608359,2464.1,2464.0,4.46425]
[1725488660999,0.00608359,2464.1,2464.0,0.40585]
[1725488661181,4.47034359,2464.1,2463.4,1.0497724]
[1725488661495,0.41194359,2464.1,2463.3,7.02271]
[1725488661881,0.41194359,2464.1,2463.5,2.8]
[1725488662080,0.41194359,2464.1,2463.7,0.4059]
[1725488662392,3.2078,2464.0,2463.7,0.4059]
[1725488662583,0.40586,2464.0,2463.5,2.8]
[1725488662790,3.5966,2463.9,2463.7,0.40591]
[1725488662986,0.7643,2463.8,2463.7,0.40591]
[1725488663693,0.7643,2463.8,2463.6,0.40591]
[1725488664591,0.7643,2463.8,2463.7,0.40591]
[1725488664889,0.7643,2463.8,2463.6,0.40591]
[1725488668498,0.7643,2463.8,2463.6,0.40592]
[1725488670303,0.7643,2463.8,2463.7,0.40591]
[1725488670498,0.7643,2463.8,2463.7,1.57591]
[1725488672801,0.7643,2463.8,2463.7,1.17]
[1725488673609,0.7643,2463.8,2463.5,0.40593]
[1725488673807,1.17019,2463.8,2463.5,0.40593]
[1725488674190,1.17019,2463.8,2463.4,1.17]
[1725488674191,0.7643,2463.8,2463.4,1.17]
[1725488674391,0.40593,2463.6,2463.3,3.61377]
[1725488674898,0.3911,2463.5,2463.3,3.61377]
[1725488675400,0.3911,2463.5,2463.4,0.40596]
[1725488675599,0.3911,2463.5,2463.4,1.57596]
[1725488676106,0.3911,2463.5,2463.4,0.40596]
[1725488676504,0.3911,2463.5,2463.3,0.40596]
[1725488677703,0.3911,2463.5,2463.3,0.40597]
[1725488678801,0.3911,2463.5,2463.2,0.40598]
[1725488680799,0.3911,2463.5,2463.3,0.40597]
[1725488681303,0.79704,2463.5,2463.2,0.40598]
[1725488682001,0.3911,2463.5,2463.3,0.40597]
[1725488688010,0.79704,2463.5,2463.3,0.40597]
[1725488689304,0.40596,2463.4,2463.2,0.40598]
[1725488689507,4.36618,2463.3,2463.1,0.406]
[1725488690502,0.7524,2463.3,2463.2,0.40599]
[1725488696908,3.2078,2463.6,2463.5,0.40594]
[1725488697117,3.2078,2463.6,2463.3,1.01494]
[1725488697118,1.0907,2463.8,2463.6,0.40591]
[1725488697506,1.0907,2463.8,2463.2,3.219]
[1725488697710,1.0907,2463.8,2463.6,0.40592]
[1725488697907,3.2078,2463.7,2463.5,0.40593]
[1725488698210,3.2078,2463.7,2463.6,0.40593]
[1725488699508,3.2078,2463.7,2463.5,0.40593]
[1725488700110,3.2078,2463.7,2463.6,0.40593]
[1725488701208,3.61371,2463.7,2463.2,1.17]
[1725488701401,3.2078,2463.7,2463.2,1.17]
[1725488701607,0.40593,2463.6,2463.3,0.40596]
[1725488702712,0.40593,2463.6,2463.4,0.40596]
[1725488703708,0.40593,2463.6,2463.1,2.18502]
[1725488703913,0.40593,2463.6,2463.4,0.40594]
[1725488705306,3.61372,2463.7,2463.5,0.40594]
[1725488705502,0.40593,2463.6,2463.4,0.40595]
[1725488706921,3.61372,2463.7,2463.5,0.40594]
[1725488707115,3.2078,2463.7,2463.6,0.40593]
[1725488708613,1.0907,2463.8,2463.6,0.40593]
[1725488708614,0.3685,2463.8,2463.7,0.40591]
[1725488708816,0.75478359,2464.1,2464.0,0.40586]
[1725488716224,0.00608359,2464.1,2464.0,0.40586]
[1725488716426,0.00608359,2464.1,2464.0,4.78366]
[1725488716725,0.00608359,2464.1,2464.0,0.40586]
[1725488717426,4.06448359,2464.1,2463.7,0.4059]
[1725488717630,3.5942,2464.0,2463.7,0.4059]
[1725488717827,0.387,2463.9,2463.8,0.40589]
[1725488718031,36.887,2463.9,2463.8,0.40589]
[1725488720330,0.387,2463.9,2463.8,0.40589]
[1725488725021,0.387,2463.9,2463.6,1.17]
[1725488725022,0.387,2463.9,2463.7,0.4059]
[1725488725235,0.3777,2463.8,2463.7,0.4059]
[1725488725933,0.3777,2463.8,2463.6,1.17]
[1725488726535,0.3777,2463.8,2463.7,0.40591]
[1725488727137,0.3777,2463.8,2463.5,0.40593]
[1725488727431,0.3777,2463.8,2463.0,0.094]
[1725488727432,1.01487,2463.5,2463.0,0.094]
[1725488727624,3.2078,2463.2,2462.9,0.40604]
[1725488727834,0.3841,2463.1,2462.9,0.40604]
[1725488728324,0.3592,2463.0,2462.9,0.40604]
[1725488728528,0.3592,2463.0,2462.9,1.57604]
[1725488728834,0.3592,2463.0,2462.9,5.63604]
[1725488729932,0.3592,2463.0,2462.9,4.46604]
[1725488730839,0.3592,2463.0,2462.9,0.40604]
[1725488735638,0.3592,2463.0,2462.9,4.46604]
[1725488738038,0.3592,2463.0,2462.9,0.40604]
[1725488740838,0.3592,2463.0,2462.9,4.46604]
[1725488741144,0.3592,2463.0,2462.9,0.40604]
[1725488743147,0.3841,2463.1,2463.0,0.40602]
[1725488743342,0.7393,2463.1,2463.0,0.40602]
[1725488745649,0.7393,2463.1,2462.5,3.5677]
[1725488745849,0.7393,2463.1,2462.5,3.2078]
[1725488746036,0.7393,2463.1,2463.0,0.40602]
[1725488746639,0.3841,2463.1,2463.0,0.40602]
[1725488747147,0.7425,2463.6,2463.0,5.07507]
[1725488747148,1.135,2463.6,2463.0,5.07507]
[1725488747353,1.135,2463.6,2463.2,2.81]
[1725488747540,1.135,2463.6,2463.5,0.40594]
[1725488747746,1.135,2463.6,2463.4,0.40595]
[1725488748853,1.135,2463.6,2463.3,0.40597]
[1725488751746,1.135,2463.6,2463.0,2.81]
[1725488751943,1.135,2463.6,2463.3,0.40597]
[1725488753156,1.135,2463.6,2463.4,0.40596]
[1725488753859,1.135,2463.6,2463.3,0.40596]
[1725488754754,1.135,2463.6,2463.3,0.40597]
[1725488754959,1.135,2463.6,2463.4,0.40596]
[1725488755358,1.135,2463.6,2463.3,0.40596]
[1725488755862,1.135,2463.6,2463.4,0.40596]
[1725488756656,1.135,2463.6,2463.3,0.40597]
[1725488757062,1.135,2463.6,2463.0,3.2078]
[1725488757063,0.40596,2463.4,2463.0,3.61382]
[1725488758149,0.40596,2463.4,2463.1,0.40601]
[1725488758754,0.40596,2463.4,2463.0,3.61381]
[1725488759459,3.61375,2463.5,2463.1,0.406]
[1725488759759,0.40596,2463.4,2463.1,0.406]
[1725488760561,4.3428,2463.6,2462.9,1.17]
[1725488760755,4.3428,2463.6,2463.3,0.40597]
[1725488761163,8.402,2463.6,2463.3,0.40597]
[1725488761462,4.0592,2463.5,2463.2,0.40598]
[1725488761669,4.74873,2463.6,2463.2,0.40598]
[1725488761866,4.74873,2463.6,2463.3,0.40597]
[1725488762257,4.74873,2463.6,2462.8,3.2078]
[1725488762258,5.2292,2463.5,2462.8,3.2078]
[1725488762457,0.40598,2463.3,2463.0,0.40602]
[1725488762960,0.3565,2463.2,2463.0,0.40602]
[1725488763163,0.3915,2463.1,2463.0,0.40602]
[1725488764166,0.3915,2463.1,2463.0,1.57602]
[1725488764976,0.3915,2463.1,2463.0,0.40602]
[1725488765173,0.3915,2463.1,2462.8,0.40606]
[1725488765470,0.3875,2463.0,2462.9,0.40604]
[1725488767569,0.3875,2463.0,2462.7,0.40606]
[1725488767773,3.2078,2462.9,2462.8,0.40606]
[1725488768075,0.3875,2463.0,2462.7,0.40606]
[1725488768374,0.358,2462.8,2462.7,0.40606]
[1725488771167,0.358,2462.8,2462.6,1.17]
[1725488771371,0.382,2462.7,2462.6,1.17]
[1725488771880,0.382,2462.7,2462.6,1.57609]
[1725488775174,0.382,2462.7,2462.6,1.17]
[1725488776670,0.382,2462.7,2462.4,3.61391]
[1725488777079,0.3759,2462.6,2462.4,3.61391]
[1725488777276,0.3759,2462.6,2462.4,3.2078]
[1725488777775,0.3759,2462.6,2462.4,3.61392]
[1725488780080,0.3759,2462.6,2462.4,0.40612]
[1725488780978,5.2308,2462.5,2462.0,3.50679626]
[1725488781180,1.17,2462.3,2461.9,0.4062]
[1725488781378,0.73,2462.2,2461.9,0.4062]
[1725488781578,0.73,2462.2,2462.0,0.40618]
[1725488781873,0.73,2462.2,2462.0,0.40619]
[1725488782671,0.73,2462.2,2461.9,1.5762]
[1725488783272,0.73,2462.2,2462.0,0.40619]
[1725488784082,0.73,2462.2,2462.1,0.40617]
[1725488784277,4.111,2462.7,2462.2,1.01537]
[1725488784473,4.111,2462.7,2462.6,1.17]
[1725488784679,0.00608359,2462.8,2462.5,1.17]
[1725488784977,0.00608359,2462.8,2462.6,0.40609]
[1725488785373,0.00608359,2462.8,2462.7,0.40607]
[1725488791584,0.00608359,2462.8,2462.6,0.40608]
[1725488791979,0.00608359,2462.8,2462.5,3.6139]
[1725488792170,0.00608359,2462.8,2462.6,0.40609]
[1725488792882,0.00608359,2462.8,2462.5,3.6139]
[1725488793281,0.00608359,2462.8,2462.6,0.40609]
[1725488794185,0.00608359,2462.8,2462.5,3.2078]
[1725488794578,0.00608359,2462.8,2462.6,0.40608]
[1725488795787,0.41214359,2462.8,2462.5,3.2078]
[1725488796085,0.41214359,2462.8,2462.4,0.40612]
[1725488796281,0.40608,2462.7,2462.3,0.40613]
[1725488796478,0.3804,2462.6,2462.3,0.40613]
[1725488796679,0.3628,2462.5,2462.3,0.40613]
[1725488796877,0.7239,2462.5,2462.3,0.40613]
[1725488799887,0.7239,2462.5,2462.4,0.40612]
[1725488800081,0.7239,2462.5,2462.2,0.40615]
[1725488800387,0.7239,2462.5,2462.0,10.2148]
[1725488800587,0.7239,2462.5,2462.2,0.40615]
[1725488801690,0.7239,2462.5,2462.0,6.0178]
[1725488801691,1.13001,2462.5,2462.1,0.40617]
[1725488802693,0.40614,2462.3,2462.0,3.61398]
[1725488802991,0.3678,2462.2,2461.9,0.40619]
[1725488803189,0.3585,2462.1,2461.9,0.40619]
[1725488803488,0.738,2462.1,2461.9,0.40619]
[1725488803790,0.738,2462.1,2461.8,0.40622]
[1725488803991,0.738,2462.1,2461.9,0.4062]
[1725488804387,0.738,2462.1,2461.7,4.197]
[1725488804388,0.40612,2462.5,2462.1,0.40617]
[1725488804587,1.1254,2462.4,2462.1,0.40617]
[1725488804880,1.53152,2462.4,2462.0,0.40618]
[1725488805492,1.53152,2462.4,2462.1,0.40617]
[1725488806092,1.1254,2462.4,2462.1,0.40617]
[1725488806496,1.53152,2462.4,2462.1,0.40617]
[1725488806695,1.1254,2462.4,2462.2,0.40615]
[1725488807495,1.1254,2462.4,2462.1,0.40616]
[1725488807691,1.1254,2462.4,2462.2,0.40616]
[1725488807882,1.1254,2462.4,2462.1,0.40616]
[1725488810791,1.1254,2462.4,2462.2,0.40615]
[1725488811990,1.17608359,2462.8,2462.3,0.40614]
[1725488812195,1.1165,2462.7,2462.4,0.40612]
[1725488812392,1.1165,2462.7,2462.4,0.40611]
[1725488812595,1.1165,2462.7,2462.2,0.7524]
[1725488813287,1.1165,2462.7,2462.4,0.40611]
[1725488813887,4.3778,2462.6,2462.2,0.40615]
[1725488814088,1.1165,2462.7,2462.1,3.2078]
[1725488814302,2.2865,2462.7,2462.3,0.40613]
[1725488814994,2.2865,2462.7,2462.2,0.40615]
[1725488814995,0.40609,2462.6,2462.2,0.40615]
[1725488815296,2.2865,2462.7,2462.1,4.3778]
[1725488815297,2.69258,2462.7,2462.1,4.3778]
[1725488815493,0.40609,2462.6,2462.2,0.40615]
[1725488816093,5.90038,2462.7,2462.2,0.40615]
[1725488817497,1.57609,2462.6,2462.2,0.40615]
[1725488817697,0.40611,2462.5,2462.2,0.40615]
[1725488818185,1.17,2462.6,2462.0,0.40618]
[1725488818392,1.17,2462.3,2462.0,0.40618]
[1725488818700,1.1431,2462.2,2462.0,0.40618]
[1725488819196,1.54926,2462.2,2461.9,0.4062]
[1725488825195,1.54926,2462.2,2461.7,0.40623]
[1725488825196,2.3131,2462.2,2461.7,0.40623]
[1725488825394,0.40622,2461.9,2461.6,0.40625]
[1725488825606,1.1512,2461.8,2461.6,0.40625]
[1725488825796,1.1512,2461.8,2461.7,0.40624]
[1725488827908,1.1512,2461.8,2461.6,0.40624]
[1725488829106,1.1512,2461.8,2461.7,0.40624]
[1725488829307,4.111,2462.3,2461.7,1.17]
[1725488829499,0.372,2462.1,2462.0,0.40618]
[1725488830604,4.111,2462.3,2462.1,0.40616]
[1725488830801,2.2855,2462.6,2462.1,0.40616]
[1725488831006,0.386,2462.2,2462.0,3.61398]
[1725488831508,0.3671,2462.1,2462.0,3.61398]
[1725488832103,0.3671,2462.1,2462.0,0.40618]
[1725488832306,0.7295,2462.1,2462.0,0.40618]
[1725488832815,0.7295,2462.1,2461.9,1.5762]
[1725488835934,0.7295,2462.1,2461.9,1.17]
[1725488836133,0.7295,2462.1,2461.8,0.40621]
[1725488836134,0.7295,2462.1,2461.8,0.40622]
[1725488836331,0.7295,2462.1,2461.7,1.17]
[1725488836332,0.7295,2462.1,2461.7,0.40623]
[1725488836627,1.13568,2462.1,2461.7,0.40623]
[1725488836829,1.13568,2462.1,2461.6,8.16614]
[1725488837035,1.13568,2462.1,2461.7,0.40624]
[1725488837624,0.4062,2462.0,2461.6,3.61404]
[1725488837830,1.17,2461.8,2461.6,3.2078]
[1725488838031,0.7487,2461.7,2461.5,0.40627]
[1725488838232,1.1128,2461.7,2461.5,0.40627]
[1725488838629,1.1128,2461.7,2461.4,1.17]
[1725488838841,1.1128,2461.7,2461.5,1.57626]
[1725488838842,0.7318,2461.7,2461.5,1.57626]
[1725488840035,36.5,2462.0,2461.6,3.61406]
[1725488840234,37.2336,2462.0,2461.6,3.61406]
[1725488841034,0.7336,2462.0,2461.6,3.61406]
[1725488841237,0.7336,2462.0,2461.6,0.40626]
[1725488841738,0.3696,2461.9,2461.6,0.40626]
[1725488842141,0.3696,2461.9,2461.7,1.57623]
[1725488843940,0.3696,2461.9,2461.6,0.0114]
[1725488843941,0.3696,2461.9,2461.6,0.41764]
[1725488844237,0.3696,2461.9,2461.7,0.40623]
[1725488844841,0.3696,2461.9,2461.8,0.40622]
[1725488845040,0.7336,2462.0,2461.8,0.40622]
[1725488846842,3.2078,2462.3,2461.7,0.3837]
[1725488847138,4.21480302,2462.6,2462.2,0.40616]